bitfinex/quotes_BTCUSD_20240611
["timestamp","ask_amount","ask_price","bid_price","bid_amount"]
[1718122558066,0.728,66636.0,66626.0,0.01856098]
[1718122558288,0.95024896,66627.0,66626.0,0.00086]
[1718122558507,0.96818397,66627.0,66626.0,0.00086]
[1718122558937,0.89602401,66627.0,66626.0,0.00086]
[1718122559151,1.04034394,66627.0,66626.0,0.00086]
[1718122560060,1.24134394,66627.0,66626.0,0.00086]
[1718122560692,1.24134394,66627.0,66626.0,0.00048313]
[1718122561169,1.24034394,66627.0,66626.0,0.00048313]
[1718122561378,1.04034394,66627.0,66626.0,0.00048313]
[1718122561608,1.04934394,66627.0,66626.0,0.00148313]
[1718122561823,1.04034394,66627.0,66626.0,0.00048313]
[1718122562047,0.01793501,66615.0,66603.0,0.00085]
[1718122562296,0.01,66610.0,66603.0,0.00085]
[1718122562527,0.018,66627.0,66605.0,0.7115]
[1718122562757,0.018,66627.0,66623.0,0.00206499]
[1718122562987,0.009,66627.0,66619.0,0.00206499]
[1718122563202,0.009,66627.0,66621.0,0.4591]
[1718122563406,0.009,66627.0,66620.0,0.14431993]
[1718122563653,0.2547,66632.0,66620.0,0.14638492]
[1718122563868,0.2497,66632.0,66621.0,0.00206499]
[1718122564301,0.2497,66632.0,66624.0,0.00206499]
[1718122565183,0.2497,66632.0,66621.0,0.00206499]
[1718122565382,0.2497,66632.0,66621.0,0.00306499]
[1718122565593,0.2497,66632.0,66621.0,0.001]
[1718122566434,0.2497,66632.0,66621.0,0.00306499]
[1718122566860,0.2693,66639.0,66632.0,0.00206499]
[1718122567085,1.15955979,66645.0,66633.0,0.00206499]
[1718122567323,0.43295979,66644.0,66633.0,0.00206499]
[1718122567523,0.07215996,66637.0,66624.0,0.24]
[1718122567734,0.21647989,66644.0,66625.0,0.10206499]
[1718122567943,0.21647989,66644.0,66625.0,0.1]
[1718122568152,0.07215996,66637.0,66625.0,0.1]
[1718122568374,0.07215996,66630.0,66620.0,0.01844815]
[1718122568591,0.4706,66629.0,66620.0,0.11844815]
[1718122568821,0.4706,66629.0,66620.0,0.1]
[1718122569656,0.4706,66629.0,66616.0,0.00206499]
[1718122570116,0.4706,66629.0,66624.0,0.00086]
[1718122570534,0.4706,66629.0,66625.0,0.001]
[1718122570964,0.2666,66635.0,66624.0,0.00292499]
[1718122571468,0.2666,66635.0,66627.0,0.00206499]
[1718122571679,0.2666,66635.0,66625.0,0.00206499]
[1718122571895,0.2666,66635.0,66624.0,0.00086]
[1718122571896,0.2666,66635.0,66624.0,0.00292499]
[1718122572104,0.2666,66635.0,66625.0,0.001]
[1718122572320,0.2666,66635.0,66624.0,0.00292499]
[1718122572754,0.33875996,66635.0,66624.0,0.00086]
[1718122572975,0.07215996,66628.0,66624.0,0.00086]
[1718122573212,0.905269,66636.0,66624.0,0.00063464]
[1718122573443,0.01,66631.0,66624.0,0.00063464]
[1718122573889,0.01,66627.0,66624.0,0.00163464]
[1718122574107,0.150079,66632.0,66624.0,0.00063464]
[1718122574336,0.07215996,66625.0,66624.0,0.00163464]
[1718122574548,0.150093,66626.0,66624.0,0.00163464]
[1718122574758,0.24192087,66625.0,66624.0,0.00063464]
[1718122574995,0.49992087,66625.0,66624.0,0.00163464]
[1718122575244,0.48198586,66625.0,66624.0,0.00163464]
[1718122575461,0.49992087,66625.0,66624.0,0.00063464]
[1718122575714,0.49992087,66625.0,66624.0,0.00163464]
[1718122575715,1.28663226,66625.0,66624.0,0.00163464]
[1718122577025,0.95462087,66625.0,66624.0,0.00063464]
[1718122577232,0.96662087,66625.0,66624.0,0.00263464]
[1718122577450,1.16662087,66625.0,66624.0,0.00263464]
[1718122577697,1.16662087,66625.0,66624.0,0.00163464]
[1718122577698,0.012,66625.0,66624.0,0.00163464]
[1718122578123,0.021,66625.0,66624.0,0.00263464]
[1718122578544,0.009,66625.0,66624.0,0.00163464]
[1718122579066,0.012,66625.0,66624.0,0.00163464]
[1718122579487,0.01,66629.0,66624.0,0.00063464]
[1718122579699,0.01793501,66629.0,66624.0,0.00063464]
[1718122579918,0.004,66625.0,66624.0,0.00063464]
[1718122580335,0.008,66625.0,66624.0,0.00063464]
[1718122580602,0.004,66625.0,66624.0,0.00063464]
[1718122580814,0.01,66631.0,66624.0,0.00063464]
[1718122581030,0.004,66629.0,66624.0,0.00063464]
[1718122581818,0.004,66625.0,66624.0,0.00063464]
[1718122582057,0.004,66629.0,66624.0,0.00063464]
[1718122583347,0.004,66629.0,66625.0,0.00206499]
[1718122583570,0.266446,66637.0,66625.0,0.00206499]
[1718122584639,0.266446,66637.0,66625.0,0.00306499]
[1718122584844,0.266446,66637.0,66625.0,0.00206499]
[1718122585291,0.266446,66637.0,66625.0,0.00306499]
[1718122585728,0.266446,66637.0,66627.0,0.00206499]
[1718122585943,0.266446,66637.0,66625.0,0.00306499]
[1718122586377,0.266446,66637.0,66625.0,0.001]
[1718122586838,0.01,66635.0,66625.0,0.001]
[1718122587472,0.01,66631.0,66625.0,0.001]
[1718122587678,0.01,66630.0,66625.0,0.001]
[1718122587896,0.4981,66629.0,66625.0,0.001]
[1718122588125,0.4981,66629.0,66624.0,0.00063464]
[1718122588347,0.4981,66629.0,66625.0,0.001]
[1718122588763,0.4981,66629.0,66624.0,0.00063464]
[1718122589637,0.64241993,66635.0,66624.0,0.00063464]
[1718122590061,0.02604741,66640.0,66625.0,0.00206499]
[1718122590062,0.000946,66637.0,66625.0,0.00206499]
[1718122590514,0.000946,66637.0,66626.0,0.00206499]
[1718122590782,0.07215996,66636.0,66626.0,0.00206499]
[1718122590996,0.07215996,66636.0,66625.0,0.00206499]
[1718122591443,0.01793501,66635.0,66624.0,0.00063464]
[1718122591658,0.01793501,66635.0,66625.0,0.001]
[1718122592093,0.07215996,66636.0,66624.0,0.00063464]
[1718122592094,0.15757938,66634.0,66624.0,0.00063464]
[1718122592347,0.01793501,66625.0,66624.0,0.00063464]
[1718122592599,0.150093,66625.0,66624.0,0.00063464]
[1718122592915,0.16801601,66631.0,66624.0,0.00063464]
[1718122593491,0.01793501,66628.0,66624.0,0.00063464]
[1718122593678,0.01793501,66627.0,66624.0,0.00063464]
[1718122594084,0.01793501,66627.0,66625.0,0.001]
[1718122594085,0.150091,66626.0,66625.0,0.001]
[1718122594420,0.150093,66625.0,66624.0,0.00063464]
[1718122594857,0.16802801,66625.0,66624.0,0.00063464]
[1718122596291,0.16902801,66625.0,66624.0,0.00063464]
[1718122597173,0.16802801,66625.0,66624.0,0.00063464]
[1718122597300,0.31334794,66625.0,66624.0,0.00063464]
[1718122597504,0.36378018,66625.0,66624.0,0.00063464]
[1718122597720,0.31334794,66625.0,66624.0,0.00063464]
[1718122598597,0.31234794,66625.0,66624.0,0.00063464]
[1718122598797,1.25384794,66625.0,66624.0,0.00063464]
[1718122599323,1.35677699,66625.0,66624.0,0.00063464]
[1718122599481,1.35577699,66625.0,66624.0,0.00063464]
[1718122599705,1.50009692,66625.0,66624.0,0.00063464]
[1718122599944,1.35777699,66625.0,66624.0,0.00063464]
[1718122600410,1.65796399,66625.0,66624.0,0.00063464]
[1718122600631,1.72385445,66625.0,66624.0,0.00063464]
[1718122600885,1.96081042,66625.0,66624.0,0.00063464]
[1718122601126,2.06081042,66625.0,66624.0,0.00063464]
[1718122601357,2.21413035,66625.0,66624.0,0.00163464]
[1718122601591,2.69043143,66625.0,66624.0,0.00063464]
[1718122601836,0.88847601,66604.0,66603.0,0.00085]
[1718122602049,1.03279594,66604.0,66603.0,0.00085]
[1718122603286,1.03279594,66604.0,66603.0,0.00062382]
[1718122604200,1.03279594,66604.0,66603.0,0.00162382]
[1718122604452,0.150141,66604.0,66603.0,0.00162382]
[1718122604726,0.01,66608.0,66603.0,0.00162382]
[1718122604975,0.150127,66610.0,66604.0,0.4616]
[1718122605425,0.16806201,66610.0,66604.0,0.4616]
[1718122605916,0.150127,66610.0,66604.0,0.4616]
[1718122607337,0.07215996,66607.0,66603.0,0.00062382]
[1718122607604,0.07215996,66607.0,66604.0,0.001]
[1718122608079,0.89757301,66605.0,66604.0,0.001]
[1718122608303,0.16807601,66604.0,66603.0,0.00062382]
[1718122608782,0.31239594,66604.0,66603.0,0.00062382]
[1718122609500,0.51239594,66604.0,66603.0,0.00062382]
[1718122610033,0.95699787,66604.0,66603.0,0.00062382]
[1718122610473,1.07687794,66604.0,66603.0,0.00062382]
[1718122610709,1.27687794,66604.0,66603.0,0.00162382]
[1718122610939,2.10469595,66604.0,66603.0,0.00162382]
[1718122611397,2.43027392,66604.0,66603.0,0.00162382]
[1718122611606,2.57459385,66604.0,66603.0,0.00062382]
[1718122611815,2.40031392,66604.0,66603.0,0.00062382]
[1718122612034,2.40031392,66604.0,66603.0,0.00162382]
[1718122612247,2.40031392,66604.0,66603.0,0.00062382]
[1718122612692,2.40931392,66604.0,66603.0,0.00162382]
[1718122613357,2.38401795,66604.0,66603.0,0.00162382]
[1718122613602,2.52833788,66604.0,66603.0,0.00162382]
[1718122613857,2.55380266,66604.0,66603.0,0.00139782]
[1718122614100,2.43891987,66604.0,66603.0,0.00039782]
[1718122614340,2.51916905,66604.0,66603.0,0.00139782]
[1718122614605,2.56563358,66604.0,66603.0,0.00239782]
[1718122614840,2.55663358,66604.0,66603.0,0.00139782]
[1718122615070,2.56563358,66604.0,66603.0,0.00239782]
[1718122615292,0.150193,66581.0,66577.0,0.00855]
[1718122615511,0.00751061,66580.0,66577.0,0.00855]
[1718122616435,0.00751071,66579.0,66577.0,0.00855]
[1718122616669,0.150188,66583.0,66577.0,0.50435]
[1718122617568,0.150188,66583.0,66577.0,0.50535]
[1718122618021,0.150188,66583.0,66577.0,0.50435]
[1718122618235,0.150188,66583.0,66577.0,0.5056942]
[1718122618440,0.150177,66588.0,66577.0,0.5056942]
[1718122618654,0.150177,66588.0,66579.0,0.02]
[1718122618865,0.150177,66588.0,66578.0,0.02]
[1718122619060,0.150177,66588.0,66577.0,0.5046942]
[1718122620328,0.07215996,66587.0,66577.0,0.5046942]
[1718122620789,0.07215996,66587.0,66577.0,0.5056942]
[1718122621016,0.07215996,66587.0,66577.0,0.5046942]
[1718122621484,0.07215996,66587.0,66577.0,0.5056942]
[1718122621713,0.07215996,66587.0,66577.0,0.5046942]
[1718122622125,0.07215996,66587.0,66577.0,0.5056942]
[1718122623024,0.2536,66602.0,66579.0,0.02]
[1718122623246,0.14431993,66599.0,66587.0,0.02]
[1718122623452,0.150153,66599.0,66588.0,0.7413]
[1718122623660,0.150153,66599.0,66588.0,0.7213]
[1718122623877,0.150153,66599.0,66589.0,0.02]
[1718122624336,0.150153,66599.0,66590.0,0.02]
[1718122624549,0.07215996,66607.0,66592.0,0.4706]
[1718122624777,0.21647989,66607.0,66593.0,0.2507]
[1718122625197,0.001,66599.0,66593.0,0.2507]
[1718122625626,0.07215996,66600.0,66593.0,0.2507]
[1718122626052,0.07215996,66600.0,66592.0,0.4716]
[1718122626053,0.21647989,66600.0,66592.0,0.4716]
[1718122627143,0.150156,66598.0,66592.0,0.4716]
[1718122627585,0.150141,66604.0,66592.0,0.4706]
[1718122627835,0.150141,66604.0,66593.0,0.001]
[1718122628098,0.07215996,66607.0,66593.0,0.001]
[1718122628315,0.07215996,66607.0,66596.0,0.02]
[1718122628552,0.07215996,66607.0,66597.0,0.02]
[1718122629021,0.07215996,66607.0,66596.0,0.01]
[1718122629452,0.01796756,66612.0,66597.0,0.02]
[1718122629676,0.07215996,66614.0,66594.0,0.2499]
[1718122629677,0.150132,66608.0,66596.0,0.4733]
[1718122629887,0.14431993,66611.0,66596.0,0.4733]
[1718122629888,0.07215996,66607.0,66596.0,0.4733]
[1718122630308,0.07215996,66600.0,66596.0,0.4733]
[1718122630964,0.150155,66598.0,66588.0,0.7465]
[1718122631247,0.150155,66598.0,66597.0,0.001]
[1718122631463,0.150155,66598.0,66588.0,0.7465]
[1718122631685,0.150155,66598.0,66596.0,0.001]
[1718122631944,0.150143,66604.0,66596.0,0.001]
[1718122632171,0.150143,66604.0,66588.0,0.7465]
[1718122632393,0.150143,66604.0,66591.0,0.02]
[1718122632394,0.07215996,66600.0,66591.0,0.02]
[1718122632619,0.15013,66609.0,66596.0,0.5185]
[1718122632845,0.07215996,66607.0,66597.0,0.268]
[1718122633090,0.07215996,66607.0,66597.0,0.248]
[1718122633539,0.07215996,66607.0,66597.0,0.2683443]
[1718122633747,0.07215996,66607.0,66599.0,0.02]
[1718122633962,0.07215996,66607.0,66599.0,0.0203443]
[1718122634173,0.150124,66612.0,66599.0,0.0003443]
[1718122634401,0.130124,66612.0,66599.0,0.0203443]
[1718122635368,0.12982951,66612.0,66599.0,0.0203443]
[1718122635593,0.07215996,66614.0,66599.0,0.0003443]
[1718122635594,0.07215996,66607.0,66599.0,0.0003443]
[1718122635833,0.07215996,66600.0,66599.0,0.0003443]
[1718122636072,0.22230996,66600.0,66599.0,0.0003443]
[1718122636539,0.07215996,66600.0,66599.0,0.0003443]
[1718122637751,0.22230996,66600.0,66599.0,0.0003443]
[1718122638230,0.36662989,66600.0,66599.0,0.0013443]
[1718122638421,0.36662989,66600.0,66599.0,0.0003443]
[1718122638670,0.56662989,66600.0,66599.0,0.0003443]
[1718122638892,0.94798288,66600.0,66599.0,0.0003443]
[1718122639142,0.61322989,66600.0,66599.0,0.0003443]
[1718122639614,0.62322989,66600.0,66599.0,0.0013443]
[1718122640061,0.62022989,66600.0,66599.0,0.0013443]
[1718122640290,0.83122989,66600.0,66599.0,0.0023443]
[1718122640508,1.66844982,66600.0,66599.0,0.0023443]
[1718122640975,1.75738109,66600.0,66599.0,0.0013443]
[1718122641192,1.76638109,66600.0,66599.0,0.0023443]
[1718122641665,1.46638109,66600.0,66599.0,0.0023443]
[1718122641901,1.32206116,66600.0,66599.0,0.0023443]
[1718122642116,0.58256116,66600.0,66599.0,0.0023443]
[1718122642343,0.48662989,66600.0,66599.0,0.0023443]
[1718122642563,0.68662989,66600.0,66599.0,0.0023443]
[1718122642803,0.48662989,66600.0,66599.0,0.0023443]
[1718122643023,0.50510552,66600.0,66599.0,0.0023443]
[1718122643237,0.70510552,66600.0,66599.0,0.0023443]
[1718122643445,0.50510552,66600.0,66599.0,0.0023443]
[1718122644091,0.64942545,66600.0,66599.0,0.0023443]
[1718122644305,1.33570268,66600.0,66599.0,0.0023443]
[1718122644732,1.53570268,66600.0,66599.0,0.0023443]
[1718122644950,1.63570268,66600.0,66599.0,0.0023443]
[1718122645177,1.6354072,66600.0,66599.0,0.0023443]
[1718122645386,2.13818212,66600.0,66599.0,0.0023443]
[1718122645595,2.28250205,66600.0,66599.0,0.0023443]
[1718122645804,2.23792713,66600.0,66599.0,0.0023443]
[1718122646541,1.49126958,66600.0,66599.0,0.0013443]
[1718122646757,1.36908041,66600.0,66599.0,0.0013443]
[1718122646981,1.26324724,66600.0,66599.0,0.0023443]
[1718122647445,0.51057161,66600.0,66599.0,0.0023443]
[1718122647694,0.30517445,66600.0,66599.0,0.0013443]
[1718122647930,0.16085452,66600.0,66599.0,0.0013443]
[1718122648187,0.17085452,66600.0,66599.0,0.0023443]
[1718122648402,0.16085452,66600.0,66599.0,0.0013443]
[1718122648651,0.16085452,66600.0,66599.0,0.0003443]
[1718122648652,0.14985452,66600.0,66599.0,0.0003443]
[1718122648870,0.17585452,66600.0,66599.0,0.0013443]
[1718122649536,0.32017445,66600.0,66599.0,0.0013443]
[1718122650182,0.30617445,66600.0,66599.0,0.0013443]
[1718122650439,0.39174769,66600.0,66599.0,0.0013443]
[1718122650654,0.31817445,66600.0,66599.0,0.0013443]
[1718122651289,0.39162986,66600.0,66599.0,0.0013443]
[1718122651504,0.93360219,66600.0,66599.0,0.0013443]
[1718122651732,1.97190219,66600.0,66599.0,0.0013443]
[1718122651936,2.38091138,66600.0,66599.0,0.0013443]
[1718122652150,2.49234868,66600.0,66599.0,0.0013443]
[1718122652412,2.40391138,66600.0,66599.0,0.0013443]
[1718122652834,2.5500338,66600.0,66599.0,0.0013443]
[1718122653053,2.5380338,66600.0,66599.0,0.0013443]
[1718122653276,1.98039,66594.0,66593.0,0.00086]
[1718122653490,2.66625113,66594.0,66593.0,0.00086]
[1718122654031,2.73480248,66594.0,66593.0,0.00086]
[1718122654245,2.8241539,66594.0,66593.0,0.00086]
[1718122654463,2.85350509,66594.0,66593.0,0.00086]
[1718122654680,2.96519266,66594.0,66593.0,0.00086]
[1718122655120,2.97919266,66594.0,66593.0,0.00086]
[1718122655334,2.85350509,66594.0,66593.0,0.00086]
[1718122655541,2.75458152,66594.0,66593.0,0.00086]
[1718122655763,2.86675977,66594.0,66593.0,0.00086]
[1718122655967,2.72243984,66594.0,66593.0,0.00086]
[1718122656384,2.55053984,66594.0,66593.0,0.00086]
[1718122656597,2.63985259,66594.0,66593.0,0.00086]
[1718122656840,2.40678739,66594.0,66593.0,0.00086]
[1718122657243,2.10646039,66594.0,66593.0,0.00086]
[1718122657450,2.06180211,66594.0,66593.0,0.00086]
[1718122657869,2.10645701,66594.0,66593.0,0.00086]
[1718122658104,2.26477694,66594.0,66593.0,0.00086]
[1718122658292,2.25077694,66594.0,66593.0,0.00086]
[1718122658718,2.26477694,66594.0,66593.0,0.00086]
[1718122658924,2.22267694,66594.0,66593.0,0.00086]
[1718122659149,2.72300394,66594.0,66593.0,0.00086]
[1718122659362,2.42078401,66594.0,66593.0,0.00086]
[1718122660435,1.82045701,66594.0,66593.0,0.00086]
[1718122660656,1.77580211,66594.0,66593.0,0.00086]
[1718122660868,2.07580211,66594.0,66593.0,0.00086]
[1718122661077,1.87580211,66594.0,66593.0,0.00086]
[1718122661310,2.07580211,66594.0,66593.0,0.00086]
[1718122661737,1.77580211,66594.0,66593.0,0.00086]
[1718122662398,2.12012204,66594.0,66593.0,0.00086]
[1718122664557,1.99386008,66594.0,66593.0,0.00086]
[1718122664766,1.99413346,66594.0,66593.0,0.00086]
[1718122665608,1.79413346,66594.0,66593.0,0.00086]
[1718122665841,1.99413346,66594.0,66593.0,0.00086]
[1718122666667,1.98013346,66594.0,66593.0,0.00086]
[1718122666872,2.42478039,66594.0,66593.0,0.00086]
[1718122667095,2.68268039,66594.0,66593.0,0.00086]
[1718122667511,2.69708863,66594.0,66593.0,0.00086]
[1718122667771,2.65247277,66594.0,66593.0,0.00086]
[1718122667980,2.87889396,66594.0,66593.0,0.00086]
[1718122668185,2.89289396,66594.0,66593.0,0.00086]
[1718122668405,2.87889396,66594.0,66593.0,0.00086]
[1718122668636,2.96684677,66594.0,66593.0,0.00086]
[1718122668865,2.98084677,66594.0,66593.0,0.00086]
[1718122669097,2.98084677,66594.0,66577.0,0.00855]
[1718122669098,0.150199,66578.0,66577.0,0.00855]
[1718122669323,0.29451893,66578.0,66577.0,0.00855]
[1718122669760,0.37518043,66578.0,66577.0,0.00855]
[1718122670999,0.40050327,66578.0,66577.0,0.00855]
[1718122671662,0.60850327,66578.0,66577.0,0.00855]
[1718122671911,0.6721617,66578.0,66577.0,0.00855]
[1718122672133,0.74576969,66578.0,66577.0,0.00855]
[1718122672551,0.86176969,66578.0,66577.0,0.00855]
[1718122672784,0.85376969,66578.0,66577.0,0.00855]
[1718122672970,0.64576969,66578.0,66577.0,0.00855]
[1718122673611,0.84576969,66578.0,66577.0,0.00855]
[1718122673866,0.84567795,66578.0,66577.0,0.00855]
[1718122674322,0.85367795,66578.0,66577.0,0.00855]
[1718122674528,0.86167795,66578.0,66577.0,0.00855]
[1718122674969,1.16207695,66578.0,66577.0,0.00855]
[1718122675621,1.50397695,66578.0,66577.0,0.00855]
[1718122675830,1.78667695,66578.0,66577.0,0.00855]
[1718122676058,1.83126009,66578.0,66577.0,0.00855]
[1718122676491,1.82326009,66578.0,66577.0,0.00855]
[1718122676714,2.31316009,66578.0,66577.0,0.00855]
[1718122677181,2.26857695,66578.0,66577.0,0.00855]
[1718122677438,2.25757695,66578.0,66577.0,0.00855]
[1718122677676,2.27157695,66578.0,66577.0,0.00855]
[1718122677901,2.06257695,66578.0,66577.0,0.00855]
[1718122678144,2.24857695,66578.0,66577.0,0.00855]
[1718122678362,2.26257695,66578.0,66577.0,0.00855]
[1718122679280,2.24857695,66578.0,66577.0,0.00855]
[1718122679507,2.26257695,66578.0,66577.0,0.00855]
[1718122680604,2.06257695,66578.0,66577.0,0.00855]
[1718122680818,1.43777695,66578.0,66577.0,0.00855]
[1718122681042,1.17407695,66578.0,66577.0,0.00855]
[1718122681268,1.07407695,66578.0,66577.0,0.00855]
[1718122681481,0.985198,66578.0,66577.0,0.00855]
[1718122681688,1.09209371,66578.0,66577.0,0.00855]
[1718122681900,0.54737478,66578.0,66577.0,0.00855]
[1718122683039,0.44737478,66578.0,66577.0,0.00855]
[1718122684066,0.44777195,66578.0,66577.0,0.00855]
[1718122684590,0.42243242,66578.0,66577.0,0.00855]
[1718122685013,0.43246011,66578.0,66577.0,0.00855]
[1718122685219,0.40703242,66578.0,66577.0,0.00855]
[1718122685431,0.38907228,66578.0,66577.0,0.00855]
[1718122688666,0.41445045,66578.0,66577.0,0.00855]
[1718122689914,0.27013052,66578.0,66577.0,0.00855]
[1718122690123,0.028,66578.0,66577.0,0.74335]
[1718122690321,0.028,66578.0,66577.0,0.69335]
[1718122690978,0.014,66578.0,66577.0,0.69335]
[1718122691127,0.150189,66583.0,66577.0,0.69335]
[1718122691329,0.006,66578.0,66577.0,0.69335]
[1718122691531,0.011,66578.0,66577.0,0.69335]
[1718122691756,0.29450893,66583.0,66577.0,0.69335]
[1718122691961,0.22234996,66582.0,66577.0,0.69335]
[1718122692132,0.001,66578.0,66577.0,0.69335]
[1718122692533,0.001,66578.0,66577.0,0.71335]
[1718122693414,0.14431993,66583.0,66577.0,0.71335]
[1718122693646,0.14431993,66583.0,66579.0,0.02]
[1718122693845,0.14531993,66583.0,66577.0,0.69335]
[1718122694646,0.14431993,66583.0,66579.0,0.02]
[1718122694851,0.14431993,66583.0,66580.0,0.02]
[1718122695047,0.14431993,66583.0,66577.0,0.69335]
[1718122695048,0.150172,66591.0,66584.0,0.02]
[1718122695306,0.150172,66591.0,66586.0,0.02]
[1718122695307,0.16977549,66590.0,66586.0,0.02]
[1718122695487,0.150172,66591.0,66588.0,0.02]
[1718122695709,0.04477605,66595.0,66589.0,0.2426]
[1718122695907,0.16265806,66599.0,66589.0,0.2426]
[1718122695908,0.07215996,66590.0,66589.0,0.2426]
[1718122696345,0.21647989,66590.0,66580.0,0.02]
[1718122696563,0.07215996,66583.0,66579.0,0.4858]
[1718122696779,0.14431993,66582.0,66576.0,6.11e-05]
[1718122697462,0.10316106,66581.0,66576.0,6.11e-05]
[1718122697677,0.14431993,66580.0,66576.0,6.11e-05]
[1718122697944,0.29452193,66577.0,66576.0,6.11e-05]
[1718122698217,1.69158783,66577.0,66576.0,6.11e-05]
[1718122698449,2.15447945,66577.0,66576.0,6.11e-05]
[1718122698660,2.15447945,66577.0,66576.0,0.0010611]
[1718122698910,2.11731784,66577.0,66576.0,0.0010611]
[1718122699119,2.50723863,66577.0,66576.0,0.0010611]
[1718122699335,2.81893751,66577.0,66576.0,0.0010611]
[1718122699574,2.91401287,66577.0,66576.0,0.0010611]
[1718122699794,2.90201287,66577.0,66576.0,0.0010611]
[1718122700117,2.90201287,66577.0,66576.0,6.11e-05]
[1718122700341,3.26524759,66577.0,66576.0,6.11e-05]
[1718122700543,3.55571506,66577.0,66576.0,6.11e-05]
[1718122700749,3.42137201,66577.0,66576.0,6.11e-05]
[1718122701059,3.23449201,66577.0,66576.0,6.11e-05]
[1718122701267,3.09222508,66577.0,66576.0,6.11e-05]
[1718122701490,4.13154708,66577.0,66576.0,6.11e-05]
[1718122701691,3.96874108,66577.0,66576.0,6.11e-05]
[1718122701894,3.38538654,66577.0,66576.0,6.11e-05]
[1718122702103,3.37138654,66577.0,66576.0,6.11e-05]
[1718122702317,3.37153831,66577.0,66576.0,6.11e-05]
[1718122702525,120.1322189,66560.0,66553.0,0.49435]
[1718122702743,120.37970473,66560.0,66553.0,0.49435]
[1718122703602,120.37970473,66560.0,66559.0,0.00877993]
[1718122704542,120.38570473,66560.0,66559.0,0.00877993]
[1718122704766,0.40372583,66560.0,66559.0,0.00877993]
[1718122704984,0.40172583,66560.0,66559.0,0.00877993]
[1718122705190,0.41924549,66560.0,66559.0,0.00877993]
[1718122705407,0.42624549,66560.0,66559.0,0.00877993]
[1718122705624,0.43324549,66560.0,66559.0,0.00877993]
[1718122707133,0.43324484,66560.0,66559.0,0.00877993]
[1718122707335,0.30855993,66560.0,66559.0,0.00877993]
[1718122708446,0.43324126,66560.0,66559.0,0.00877993]
[1718122708871,0.30855993,66560.0,66559.0,0.00877993]
[1718122710376,0.30155993,66560.0,66559.0,0.00877993]
[1718122710839,0.30855993,66560.0,66559.0,0.00877993]
[1718122711058,0.30155993,66560.0,66559.0,0.00877993]
[1718122711260,0.30855993,66560.0,66559.0,0.00877993]
[1718122712504,0.014,66560.0,66559.0,0.00877993]
[1718122712721,0.014,66560.0,66559.0,0.72387993]
[1718122712924,0.014,66560.0,66559.0,0.74387993]
[1718122713126,0.014,66560.0,66559.0,0.72387993]
[1718122713502,0.007,66560.0,66559.0,0.72387993]
[1718122713925,0.002,66560.0,66559.0,0.72387993]
[1718122714375,0.14831993,66560.0,66559.0,0.00877993]
[1718122714503,0.01622007,66559.0,66557.0,0.00855]
[1718122714702,0.16054,66559.0,66557.0,0.00855]
[1718122716224,0.310782,66559.0,66557.0,0.00855]
[1718122716785,0.311782,66559.0,66557.0,0.00855]
[1718122716987,0.43390983,66559.0,66557.0,0.00855]
[1718122717233,0.43290983,66559.0,66557.0,0.00855]
[1718122717436,0.310782,66559.0,66557.0,0.00855]
[1718122718045,0.314782,66559.0,66557.0,0.00855]
[1718122718191,0.312782,66559.0,66557.0,0.00855]
[1718122718608,0.315782,66559.0,66557.0,0.00855]
[1718122719063,1.02112101,66559.0,66557.0,0.00855]
[1718122719300,2.24013909,66559.0,66557.0,0.00855]
[1718122719482,2.85218737,66559.0,66557.0,0.00855]
[1718122719693,2.7608021,66559.0,66557.0,0.00855]
[1718122719896,0.850733,66558.0,66557.0,0.00855]
[1718122720100,1.41959313,66558.0,66557.0,0.00855]
[1718122720322,0.450253,66554.0,66553.0,0.00855]
[1718122720556,1.04137868,66554.0,66553.0,0.00855]
[1718122720747,0.99671663,66554.0,66553.0,0.00855]
[1718122720946,1.45512363,66554.0,66553.0,0.00855]
[1718122721149,2.13046028,66554.0,66553.0,0.00855]
[1718122721355,2.08579062,66554.0,66553.0,0.00855]
[1718122721977,2.09979062,66554.0,66553.0,0.00855]
[1718122722203,0.150289,66539.0,66530.0,0.01517023]
[1718122722411,0.07215996,66531.0,66530.0,0.01517023]
[1718122722845,0.07215996,66531.0,66529.0,0.01517023]
[1718122723211,0.07215996,66531.0,66527.0,0.47667023]
[1718122723414,0.07215996,66531.0,66528.0,0.01517023]
[1718122723613,0.07215996,66531.0,66527.0,0.4615]
[1718122723614,0.07215996,66531.0,66529.0,0.01517023]
[1718122723848,0.07215996,66537.0,66535.0,0.01]
[1718122724050,0.07215996,66537.0,66535.0,0.01517023]
[1718122724286,0.07215996,66537.0,66536.0,0.01517023]
[1718122724843,0.9793,66548.0,66537.0,0.01517023]
[1718122724844,0.07215996,66538.0,66537.0,0.01517023]
[1718122725096,0.07215996,66538.0,66536.0,0.01517023]
[1718122726480,0.07215996,66538.0,66534.0,0.7239]
[1718122726915,0.14431993,66537.0,66534.0,0.7239]
[1718122727285,0.14431993,66537.0,66531.0,0.4814]
[1718122727484,0.023,66536.0,66531.0,0.4814]
[1718122727689,0.14431993,66535.0,66532.0,0.01517023]
[1718122727894,0.14431993,66535.0,66534.0,0.01517023]
[1718122728106,0.001,66538.0,66537.0,0.01517023]
[1718122728638,0.150292,66537.0,66534.0,0.01517023]
[1718122728853,0.07215996,66535.0,66533.0,0.01517023]
[1718122729064,0.22997229,66535.0,66532.0,0.01517023]
[1718122729284,0.150299,66534.0,66531.0,0.4814]
[1718122729646,0.150302,66533.0,66531.0,0.4814]
[1718122730292,0.023,66541.0,66531.0,0.4814]
[1718122730293,0.150288,66539.0,66531.0,0.4814]
[1718122730491,0.150292,66537.0,66531.0,0.4814]
[1718122730700,0.16731993,66536.0,66534.0,0.01517023]
[1718122730904,0.16731993,66536.0,66533.0,0.01517023]
[1718122731153,0.16731993,66536.0,66531.0,0.49657023]
[1718122731401,0.15031,66529.0,66526.0,0.02372023]
[1718122731612,0.29462993,66529.0,66528.0,0.01517023]
[1718122731778,0.29462993,66529.0,66527.0,0.01517023]
[1718122732344,0.29462993,66529.0,66526.0,0.00855]
[1718122732345,0.07215996,66535.0,66526.0,0.00855]
[1718122732560,0.16731993,66534.0,66526.0,0.00855]
[1718122732775,0.16731993,66534.0,66526.0,0.02372023]
[1718122732971,0.14431993,66534.0,66529.0,0.01517023]
[1718122734681,0.14431993,66534.0,66530.0,0.01517023]
[1718122734878,0.150295,66536.0,66533.0,0.01517023]